[Event "11th Arad Open 2018"]
[Site "Arad"]
[Date "2018.08.07"]
[Round "4"]
[White "Filip, Lucian-Ioan"]
[Black "Calin, Alexandru"]
[Result "1-0"]
[ECO "C41"]
[WhiteElo "2426"]
[BlackElo "2215"]
[Annotator "NA"]
[PlyCount "85"]
[EventDate "2018.08.05"]
[EventType "swiss"]
[EventCountry "ROU"]
[SourceTitle "playchess.com"]
[Source "ChessBase"]
[SourceQuality "1"]
[TimeControl "40/5400+30:1800+30"]

1. e4 {[%emt 0:00:00]} e5 {[%emt 0:00:40]} 2. Nf3 {[%emt 0:00:00]} d6 {[%emt 0:01:36]} 3. d4 {[%emt 0:00:00]} Nd7 {[%emt 0:06:26]} 4. Bc4 {[%emt 0:03:49]} c6 {[%emt 0:00:22]} 5. a4 {[%emt 0:21:50]} Ngf6 {[%emt 0:05:20]} 6. Nc3 {[%emt 0:01:54]} Be7 {[%emt 0:00:18]} 7. O-O {[%emt 0:00:28]} O-O {[%emt 0:00:03]} 8. Re1 {[%emt 0:02:42]} b6 {[%emt 0:00:34]} 9. b3 {[%emt 0:19:15]} a6 {[%emt 0:01:44]} 10. d5 {[%emt 0:05:55]} Bb7 {[%emt 0:02:00]} 11. dxc6 {[%emt 0:07:42]} Bxc6 {[%emt 0:00:04]} 12. Bg5 {[%emt 0:00:36]} Qc8 {[%emt 0:18:03]} 13. Nd5 {[%emt 0:13:15]} Bxd5 {[%emt 0:02:55]} 14. Bxf6 {[%emt 0:00:13]} Nxf6 {[%emt 0:00:52]} 15. Bxd5 {[%emt 0:00:05]} Ra7 {[%emt 0:00:20]} 16. Bc4 {[%emt 0:11:00]} Rc7 {[%emt 0:11:58]} 17. Qd3 {[%emt 0:03:16]} a5 {[%emt 0:09:59]} 18. Nd2 {[%emt 0:01:10]} Nh5 {[%emt 0:01:24]} 19. g3 {[%emt 0:00:40]} Rd8 {[%emt 0:20:13]} 20. Nb1 {[%emt 0:02:11]} Bf8 {[%emt 0:00:23]} 21. Nc3 {[%emt 0:00:10]} Nf6 {[%emt 0:00:13]} 22. Kg2 {[%emt 0:00:45]} Rc5 {[%emt 0:01:17]} 23. Rad1 {[%emt 0:00:46]} Qc6 {[%emt 0:01:37]} 24. Re3 {[%emt 0:02:34]} Qc8 {[%emt 0:03:40]} 25. Rf3 {[%emt 0:00:21]} Be7 {[%emt 0:03:40]} 26. h3 {[%emt 0:00:49]} h5 {[%emt 0:00:59]} 27. Qe2 {[%emt 0:01:15]} h4 {[%emt 0:01:49]} 28. g4 {[%emt 0:00:27]} Rf8 {[%emt 0:01:21]} 29. g5 {[%emt 0:00:34]} Nh5 {[%emt 0:01:36]} 30. g6 {[%emt 0:00:34]} Nf4+ {[%emt 0:01:50]} 31. Rxf4 {[%emt 0:00:03]} exf4 {[%emt 0:00:08]} 32. Nd5 {[%emt 0:00:58]} Qe6 {[%emt 0:00:25]} 33. gxf7+ {[%emt 0:00:38]} Rxf7 {[%emt 0:00:10]} 34. Nxf4 {[%emt 0:00:26]} Rg5+ {[%emt 0:01:10]} 35. Kh1 {[%emt 0:00:11]} Qe5 {[%emt 0:01:43]} 36. Bxf7+ {[%emt 0:00:46]} Kxf7 {[%emt 0:00:04]} 37. Nd5 {[%emt 0:00:15]} Qe6 {[%emt 0:00:22]} 38. Qf3+ {[%emt 0:00:13]} Bf6 {[%emt 0:00:53]} 39. Rg1 {[%emt 0:00:07]} Re5 {[%emt 0:00:27]} 40. Rg4 {[%emt 0:00:00]} g5 {[%emt 0:00:00]} 41. Nxb6 {[%emt 0:19:00]} Kg6 {[%emt 0:20:23]} 42. Nd5 {[%emt 0:00:43]} Qf7 {[%emt 0:00:55]} 43. Qd3 {[%emt 0:04:43]} 1-0

[Event "11th Arad Open 2018"]
[Site "Arad"]
[Date "2018.08.07"]
[Round "4"]
[White "Secheres, Adrian-Simion"]
[Black "Scripcaru, George-Daniel"]
[Result "1/2-1/2"]
[ECO "B01"]
[WhiteElo "2407"]
[BlackElo "2177"]
[Annotator "NA"]
[PlyCount "51"]
[EventDate "2018.08.05"]
[EventType "swiss"]
[EventCountry "ROU"]
[SourceTitle "playchess.com"]
[Source "ChessBase"]
[SourceQuality "1"]
[TimeControl "40/5400+30:1800+30"]

1. e4 {[%emt 0:00:00]} d5 {[%emt 0:00:00]} 2. exd5 {[%emt 0:00:00]} Qxd5 {[%emt 0:00:00]} 3. Nf3 {[%emt 0:00:16]} Nf6 {[%emt 0:00:46]} 4. d4 {[%emt 0:00:32]} Bg4 {[%emt 0:00:28]} 5. Be2 {[%emt 0:00:27]} Nc6 {[%emt 0:00:56]} 6. c4 {[%emt 0:00:45]} Qd6 {[%emt 0:01:48]} 7. Be3 {[%emt 0:04:02]} e6 {[%emt 0:04:02]} 8. Nbd2 {[%emt 0:08:02]} Be7 {[%emt 0:00:13]} 9. O-O {[%emt 0:01:59]} O-O {[%emt 0:00:06]} 10. h3 {[%emt 0:03:26]} Bh5 {[%emt 0:00:17]} 11. a3 {[%emt 0:01:12]} Rfd8 {[%emt 0:04:22]} 12. Qb3 {[%emt 0:03:04]} a6 {[%emt 0:14:50]} 13. Rfd1 {[%emt 0:07:20]} Rab8 {[%emt 0:06:05]} 14. Qc3 {[%emt 0:11:22]} Bg6 {[%emt 0:11:41]} 15. b4 {[%emt 0:09:48]} Bf8 {[%emt 0:08:14]} 16. Rac1 {[%emt 0:03:14]} Ne7 {[%emt 0:08:26]} 17. Ne5 {[%emt 0:08:24]} Nf5 {[%emt 0:01:11]} 18. Nxg6 {[%emt 0:01:41]} hxg6 {[%emt 0:01:39]} 19. Nf3 {[%emt 0:00:55]} Nxe3 {[%emt 0:12:41]} 20. Qxe3 {[%emt 0:00:39]} c6 {[%emt 0:00:06]} 21. Ne5 {[%emt 0:02:03]} a5 {[%emt 0:00:49]} 22. Rb1 {[%emt 0:05:17]} axb4 {[%emt 0:00:15]} 23. axb4 {[%emt 0:01:03]} Nd7 {[%emt 0:03:49]} 24. Bf3 {[%emt 0:09:51]} Nxe5 {[%emt 0:03:47]} 25. dxe5 {[%emt 0:00:07]} Qc7 {[%emt 0:00:05]} 26. Qc3 {[%emt 0:05:22]} 1/2-1/2

[Event "11th Arad Open 2018"]
[Site "Arad"]
[Date "2018.08.07"]
[Round "4"]
[White "Abramovic, Bosko"]
[Black "Ciorica, Mihai-Vlad"]
[Result "1-0"]
[ECO "D02"]
[WhiteElo "2400"]
[BlackElo "2110"]
[Annotator "NA"]
[PlyCount "93"]
[EventDate "2018.08.05"]
[EventType "swiss"]
[EventCountry "ROU"]
[SourceTitle "playchess.com"]
[Source "ChessBase"]
[SourceQuality "1"]
[TimeControl "40/5400+30:1800+30"]

1. d4 {[%emt 0:00:00]} d5 {[%emt 0:00:00]} 2. Nf3 {[%emt 0:00:00]} c6 {[%emt 0:00:26]} 3. g3 {[%emt 0:00:04]} Bg4 {[%emt 0:00:34]} 4. Bg2 {[%emt 0:00:39]} Nd7 {[%emt 0:00:35]} 5. Nbd2 {[%emt 0:00:49]} Ngf6 {[%emt 0:00:23]} 6. O-O {[%emt 0:00:08]} e6 {[%emt 0:00:04]} 7. Re1 {[%emt 0:00:49]} Be7 {[%emt 0:01:20]} 8. c3 {[%emt 0:01:21]} O-O {[%emt 0:00:10]} 9. e4 {[%emt 0:00:12]} dxe4 {[%emt 0:00:09]} 10. Nxe4 {[%emt 0:00:05]} Nxe4 {[%emt 0:00:32]} 11. Rxe4 {[%emt 0:00:05]} Nf6 {[%emt 0:00:14]} 12. Re1 {[%emt 0:00:03]} Nd5 {[%emt 0:06:04]} 13. Qb3 {[%emt 0:02:03]} Bxf3 {[%emt 0:02:10]} 14. Bxf3 {[%emt 0:00:07]} Qb6 {[%emt 0:04:41]} 15. Qc2 {[%emt 0:00:56]} Bf6 {[%emt 0:00:10]} 16. Bd2 {[%emt 0:00:58]} Rfd8 {[%emt 0:00:27]} 17. Rad1 {[%emt 0:00:20]} Rd7 {[%emt 0:04:47]} 18. h4 {[%emt 0:00:45]} Rad8 {[%emt 0:01:18]} 19. Bc1 {[%emt 0:00:30]} g6 {[%emt 0:04:22]} 20. h5 {[%emt 0:00:45]} c5 {[%emt 0:03:59]} 21. dxc5 {[%emt 0:00:57]} Qxc5 {[%emt 0:00:03]} 22. Qe2 {[%emt 0:02:02]} b5 {[%emt 0:02:15]} 23. Qe4 {[%emt 0:12:27]} b4 {[%emt 0:33:29]} 24. cxb4 {[%emt 0:11:14]} Qxb4 {[%emt 0:06:31]} 25. Qe2 {[%emt 0:00:44]} Nb6 {[%emt 0:03:25]} 26. Rxd7 {[%emt 0:05:56]} Rxd7 {[%emt 0:00:04]} 27. Rd1 {[%emt 0:01:25]} Qc4 {[%emt 0:01:59]} 28. Qxc4 {[%emt 0:03:21]} Rxd1+ {[%emt 0:00:04]} 29. Bxd1 {[%emt 0:00:04]} Nxc4 {[%emt 0:00:05]} 30. b3 {[%emt 0:00:03]} Nb6 {[%emt 0:02:42]} 31. Bf3 {[%emt 0:02:47]} Nd5 {[%emt 0:03:58]} 32. Kf1 {[%emt 0:00:52]} Bd4 {[%emt 0:00:40]} 33. hxg6 {[%emt 0:01:35]} fxg6 {[%emt 0:04:53]} 34. a3 {[%emt 0:00:23]} Kf7 {[%emt 0:00:10]} 35. Ke2 {[%emt 0:00:11]} Kf6 {[%emt 0:00:34]} 36. b4 {[%emt 0:03:41]} g5 {[%emt 0:04:16]} 37. Bxd5 {[%emt 0:00:12]} exd5 {[%emt 0:00:05]} 38. g4 {[%emt 0:00:01]} h6 {[%emt 0:02:28]} 39. Be3 {[%emt 0:00:59]} Ke5 {[%emt 0:02:52]} 40. a4 {[%emt 0:00:00]} a6 {[%emt 0:00:00]} 41. Kd3 {[%emt 0:24:02]} Bb2 {[%emt 0:21:16]} 42. Bc5 {[%emt 0:09:18]} Bc1 {[%emt 0:08:49]} 43. b5 {[%emt 0:01:00]} axb5 {[%emt 0:04:29]} 44. a5 {[%emt 0:00:29]} b4 {[%emt 0:00:39]} 45. a6 {[%emt 0:00:29]} b3 {[%emt 0:00:03]} 46. a7 {[%emt 0:00:11]} b2 {[%emt 0:00:05]} 47. Kc2 1-0

[Event "11th Arad Open 2018"]
[Site "Arad"]
[Date "2018.08.07"]
[Round "4"]
[White "Stoleriu, George"]
[Black "David, Bogdan-Emanuel"]
[Result "1/2-1/2"]
[ECO "B24"]
[WhiteElo "2392"]
[BlackElo "2104"]
[Annotator "NA"]
[PlyCount "125"]
[EventDate "2018.08.05"]
[EventType "swiss"]
[EventCountry "ROU"]
[SourceTitle "playchess.com"]
[Source "ChessBase"]
[SourceQuality "1"]
[TimeControl "40/5400+30:1800+30"]

1. e4 {[%emt 0:00:00]} c5 {[%emt 0:00:00]} 2. Nc3 {[%emt 0:01:56]} Nc6 {[%emt 0:00:05]} 3. Bb5 {[%emt 0:01:38]} Nd4 {[%emt 0:00:22]} 4. Bc4 {[%emt 0:00:03]} e6 {[%emt 0:01:00]} 5. Nge2 {[%emt 0:00:03]} a6 {[%emt 0:00:39]} 6. Bb3 {[%emt 0:01:39]} b5 {[%emt 0:03:21]} 7. d3 {[%emt 0:00:09]} Nxb3 {[%emt 0:05:49]} 8. axb3 {[%emt 0:00:24]} Bb7 {[%emt 0:00:08]} 9. O-O {[%emt 0:00:07]} Nf6 {[%emt 0:04:55]} 10. f4 {[%emt 0:13:02]} d5 {[%emt 0:03:38]} 11. e5 {[%emt 0:00:09]} d4 {[%emt 0:01:13]} 12. exf6 {[%emt 0:00:07]} dxc3 {[%emt 0:00:04]} 13. f5 {[%emt 0:00:10]} gxf6 {[%emt 0:02:27]} 14. fxe6 {[%emt 0:00:53]} fxe6 {[%emt 0:01:43]} 15. Nf4 {[%emt 0:11:01]} Qd4+ {[%emt 0:34:45]} 16. Kh1 {[%emt 0:00:13]} O-O-O {[%emt 0:01:00]} 17. bxc3 {[%emt 0:04:44]} Qd7 {[%emt 0:03:19]} 18. Qe2 {[%emt 0:19:13]} Rg8 {[%emt 0:07:43]} 19. Rf2 {[%emt 0:03:16]} e5 {[%emt 0:03:22]} 20. Nh5 {[%emt 0:00:33]} Be7 {[%emt 0:00:35]} 21. Kg1 {[%emt 0:05:22]} Rg6 {[%emt 0:00:41]} 22. Bd2 {[%emt 0:01:02]} Rdg8 {[%emt 0:00:46]} 23. Ng3 {[%emt 0:00:05]} Rg4 {[%emt 0:04:16]} 24. Raf1 {[%emt 0:13:34]} h5 {[%emt 0:00:48]} 25. Be1 {[%emt 0:00:21]} c4 {[%emt 0:06:41]} 26. Qe3 {[%emt 0:07:00]} h4 {[%emt 0:01:49]} 27. Ne4 {[%emt 0:00:10]} Bxe4 {[%emt 0:00:10]} 28. dxe4 {[%emt 0:00:20]} Qc6 {[%emt 0:00:14]} 29. b4 {[%emt 0:03:00]} Bd8 {[%emt 0:00:14]} 30. Qc5 {[%emt 0:05:09]} Qxc5 {[%emt 0:00:06]} 31. bxc5 {[%emt 0:00:05]} Rxe4 {[%emt 0:02:52]} 32. Rd2 {[%emt 0:00:05]} Be7 {[%emt 0:00:34]} 33. Bf2 {[%emt 0:00:32]} Reg4 {[%emt 0:03:12]} 34. Be3 {[%emt 0:00:50]} Kc7 {[%emt 0:02:27]} 35. Ra1 {[%emt 0:00:54]} Ra8 {[%emt 0:01:11]} 36. Rad1 {[%emt 0:02:59]} Rd8 {[%emt 0:00:07]} 37. Rxd8 {[%emt 0:00:08]} Bxd8 {[%emt 0:00:01]} 38. Rd6 {[%emt 0:00:11]} f5 {[%emt 0:02:48]} 39. Re6 {[%emt 0:05:19]} Re4 {[%emt 0:01:18]} 40. Kf2 {[%emt 0:00:00]} Kb7 {[%emt 0:00:00]} 41. Rd6 {[%emt 0:20:26]} Ba5 {[%emt 0:20:57]} 42. Bd2 {[%emt 0:09:52]} Rg4 {[%emt 0:00:54]} 43. Re6 {[%emt 0:03:45]} e4 {[%emt 0:01:05]} 44. h3 {[%emt 0:00:59]} Rg7 {[%emt 0:01:00]} 45. Bf4 {[%emt 0:00:29]} Bc7 {[%emt 0:03:24]} 46. Be3 {[%emt 0:00:31]} a5 {[%emt 0:03:27]} 47. Rf6 {[%emt 0:00:23]} a4 {[%emt 0:02:08]} 48. c6+ {[%emt 0:00:12]} Ka6 {[%emt 0:01:07]} 49. Bc5 {[%emt 0:00:55]} f4 {[%emt 0:01:35]} 50. Ke1 {[%emt 0:00:03]} Be5 {[%emt 0:01:03]} 51. Rf8 {[%emt 0:00:39]} Bxc3+ {[%emt 0:00:05]} 52. Kd1 {[%emt 0:00:35]} b4 {[%emt 0:00:41]} 53. Bd6 {[%emt 0:00:43]} a3 {[%emt 0:00:52]} 54. c7 {[%emt 0:00:31]} Rxc7 {[%emt 0:00:12]} 55. Bxc7 {[%emt 0:00:04]} a2 {[%emt 0:01:31]} 56. Ra8+ {[%emt 0:00:19]} Kb7 {[%emt 0:00:03]} 57. Rxa2 {[%emt 0:00:11]} Kxc7 {[%emt 0:00:15]} 58. Ra6 {[%emt 0:01:25]} e3 {[%emt 0:01:43]} 59. Ke2 {[%emt 0:00:23]} Kd7 {[%emt 0:00:09]} 60. Rb6 {[%emt 0:00:27]} Kc7 {[%emt 0:00:35]} 61. Ra6 {[%emt 0:00:40]} Kd7 {[%emt 0:00:17]} 62. Rb6 {[%emt 0:00:30]} Kc7 {[%emt 0:00:17]} 63. Ra6 {[%emt 0:00:20]} 1/2-1/2

[Event "11th Arad Open 2018"]
[Site "Arad"]
[Date "2018.08.07"]
[Round "4"]
[White "Bogdan, Dan"]
[Black "Carasca, Bogdan-Petru"]
[Result "1/2-1/2"]
[ECO "D90"]
[WhiteElo "2382"]
[BlackElo "1993"]
[Annotator "NA"]
[PlyCount "80"]
[EventDate "2018.08.05"]
[EventType "swiss"]
[EventCountry "ROU"]
[SourceTitle "playchess.com"]
[Source "ChessBase"]
[SourceQuality "1"]
[TimeControl "40/5400+30:1800+30"]

1. c4 {[%emt 0:06:14]} Nf6 {[%emt 0:00:00]} 2. d4 {[%emt 0:02:39]} g6 {[%emt 0:00:14]} 3. Nc3 {[%emt 0:01:25]} d5 {[%emt 0:00:42]} 4. Nf3 {[%emt 0:02:38]} Bg7 {[%emt 0:00:35]} 5. cxd5 {[%emt 0:12:47]} Nxd5 {[%emt 0:01:09]} 6. g3 {[%emt 0:00:14]} O-O {[%emt 0:02:22]} 7. Bg2 {[%emt 0:00:47]} c5 {[%emt 0:02:39]} 8. Nxd5 {[%emt 0:05:00]} Qxd5 {[%emt 0:00:47]} 9. dxc5 {[%emt 0:00:26]} Qxd1+ {[%emt 0:01:22]} 10. Kxd1 Na6 {[%emt 0:02:14]} 11. c6 {[%emt 0:02:54]} bxc6 {[%emt 0:01:10]} 12. Nd2 {[%emt 0:00:07]} Nb4 13. a3 Nd5 {[%emt 0:05:46]} 14. Kc2 Rb8 15. e4 Nb6 16. Rb1 Rd8 17. b3 Rb7 18. Bf1 Be6 19. f3 Rbd7 20. Be2 a5 21. Nc4 Nxc4 22. bxc4 Bd4 23. Rd1 c5 24. Rb5 Ra8 25. Bb2 Rdd8 26. Bxd4 cxd4 27. Kd3 f6 28. f4 Bf7 29. Rc1 e6 30. h4 Be8 31. Rb6 e5 32. c5 Kf7 33. Bd1 Rac8 34. Bb3+ Kg7 35. Bd5 Rc7 36. fxe5 fxe5 37. Re6 Bb5+ 38. Kd2 Rf8 39. Rxe5 Rf2+ 40. Kd1 Rf1+ {Re6 d3+} 1/2-1/2

[Event "11th Arad Open 2018"]
[Site "Arad"]
[Date "2018.08.07"]
[Round "4"]
[White "Baratosi, Daniel"]
[Black "Balog, Imre"]
[Result "0-1"]
[ECO "A00"]
[WhiteElo "2371"]
[BlackElo "2540"]
[Annotator "ChessBase"]
[PlyCount "84"]
[EventDate "2018.08.05"]
[EventType "swiss"]
[EventCountry "ROU"]
[SourceTitle "playchess.com"]
[Source "ChessBase"]
[SourceQuality "1"]
[TimeControl "40/5400+30:1800+30"]

1. g3 {[%emt 0:08:09]} d5 {[%emt 0:00:06]} 2. Bg2 {[%emt 0:00:10]} e5 {[%emt 0:01:21]} 3. d3 {[%emt 0:01:21]} Nc6 {[%emt 0:01:01]} 4. a3 {[%emt 0:04:10]} a5 {[%emt 0:01:43]} 5. Nd2 {[%emt 0:06:18]} Nf6 {[%emt 0:04:11]} 6. b3 {[%emt 0:03:09]} Bc5 {[%emt 0:04:20]} 7. e3 {[%emt 0:00:04]} Qe7 {[%emt 0:13:24]} 8. Ne2 {[%emt 0:08:26]} O-O {[%emt 0:13:15]} 9. h3 {[%emt 0:05:50]} Be6 {[%emt 0:02:34]} 10. O-O {[%emt 0:03:09]} Rad8 {[%emt 0:02:42]} 11. Bb2 {[%emt 0:01:06]} Rfe8 {[%emt 0:02:15]} 12. Nf3 {[%emt 0:13:46]} Bc8 {[%emt 0:03:41]} 13. d4 {[%emt 0:15:00]} exd4 {[%emt 0:02:52]} 14. Nexd4 {[%emt 0:00:34]} Ne4 {[%emt 0:00:31]} 15. Nxc6 {[%emt 0:07:45]} bxc6 {[%emt 0:00:13]} 16. Ne5 {[%emt 0:00:03]} Rd6 {[%emt 0:01:14]} 17. Bd4 {[%emt 0:12:25]} Bb6 {[%emt 0:00:25]} 18. b4 {[%emt 0:01:58]} Rh6 {[%emt 0:04:48]} 19. h4 {[%emt 0:02:32]} axb4 {[%emt 0:01:13]} 20. axb4 {[%emt 0:00:01]} Qxb4 {[%emt 0:00:48]} 21. Ra8 {[%emt 0:01:08]} Qe7 {[%emt 0:02:28]} 22. Qa1 {[%emt 0:02:07]} Rd6 {[%emt 0:07:10]} 23. Nd3 {[%emt 0:01:23]} f6 {[%emt 0:01:20]} 24. Nf4 {[%emt 0:00:43]} c5 {[%emt 0:01:37]} 25. Bb2 {[%emt 0:00:05]} Rdd8 {[%emt 0:00:14]} 26. Qa2 {[%emt 0:01:04]} c6 {[%emt 0:01:25]} 27. c4 {[%emt 0:00:19]} d4 {[%emt 0:17:12]} 28. exd4 {[%emt 0:00:15]} Nd2 {[%emt 0:00:20]} 29. Ra1 {[%emt 0:00:56]} Bc7 {[%emt 0:01:35]} 30. Qa7 {[%emt 0:00:31]} Nxc4 {[%emt 0:02:15]} 31. Bxc6 {[%emt 0:00:10]} Bxf4 {[%emt 0:00:44]} 32. Bxe8 {[%emt 0:00:50]} Qxe8 {[%emt 0:02:30]} 33. Qa2 {[%emt 0:00:01]} Qe6 {[%emt 0:02:05]} 34. d5 {[%emt 0:00:52]} Qe4 {[%emt 0:02:03]} 35. d6 {[%emt 0:00:35]} Bxg3 {[%emt 0:01:18]} 36. Bxf6 {[%emt 0:00:30]} gxf6 {[%emt 0:00:31]} 37. fxg3 {[%emt 0:00:02]} Kg7 {[%emt 0:00:28]} 38. Ra7+ {[%emt 0:01:00]} Rd7 {[%emt 0:00:13]} 39. Rxd7+ {[%emt 0:00:31]} Bxd7 {[%emt 0:00:04]} 40. Qf2 {[%emt 0:00:00]} Bc6 {[%emt 0:00:00]} 41. Kh2 {[%emt 0:21:59]} Ne5 {[%emt 0:16:11]} 42. Ra7+ {[%emt 0:04:07]} Kg8 {[%emt 0:00:36]} 0-1

[Event "11th Arad Open 2018"]
[Site "Arad"]
[Date "2018.08.07"]
[Round "4"]
[White "Abramciuc, Marius"]
[Black "Samu, Sorin-Mihai"]
[Result "1-0"]
[ECO "C45"]
[WhiteElo "2357"]
[BlackElo "2090"]
[Annotator "NA"]
[PlyCount "85"]
[EventDate "2018.08.05"]
[EventType "swiss"]
[EventCountry "ROU"]
[SourceTitle "playchess.com"]
[Source "ChessBase"]
[SourceQuality "1"]
[TimeControl "40/5400+30:1800+30"]

1. e4 {[%emt 0:00:00]} Nc6 {[%emt 0:01:54]} 2. d4 {[%emt 0:04:09]} e5 {[%emt 0:00:13]} 3. Nf3 {[%emt 0:01:43]} exd4 {[%emt 0:00:17]} 4. Nxd4 {[%emt 0:00:08]} Bc5 {[%emt 0:01:03]} 5. Be3 {[%emt 0:00:07]} Nxd4 {[%emt 0:03:07]} 6. Bxd4 {[%emt 0:00:05]} Bxd4 {[%emt 0:00:13]} 7. Qxd4 {[%emt 0:00:01]} Qf6 {[%emt 0:00:22]} 8. c3 {[%emt 0:02:58]} d6 {[%emt 0:00:45]} 9. Na3 {[%emt 0:03:58]} Qxd4 {[%emt 0:02:26]} 10. cxd4 {[%emt 0:00:01]} Bd7 {[%emt 0:01:02]} 11. Nb5 {[%emt 0:10:15]} Bxb5 {[%emt 0:00:44]} 12. Bxb5+ {[%emt 0:00:01]} c6 {[%emt 0:00:17]} 13. Bd3 {[%emt 0:00:06]} Nf6 {[%emt 0:00:59]} 14. f3 {[%emt 0:00:40]} O-O-O {[%emt 0:00:49]} 15. Kf2 {[%emt 0:01:37]} Rhe8 {[%emt 0:01:49]} 16. Rac1 {[%emt 0:05:04]} Kb8 {[%emt 0:00:27]} 17. Rhe1 {[%emt 0:02:53]} Re7 {[%emt 0:00:39]} 18. g4 {[%emt 0:00:47]} Ne8 {[%emt 0:00:22]} 19. h4 {[%emt 0:01:43]} Nc7 {[%emt 0:00:04]} 20. g5 {[%emt 0:04:07]} Ne6 {[%emt 0:00:28]} 21. Ke3 {[%emt 0:00:11]} d5 {[%emt 0:01:26]} 22. e5 {[%emt 0:01:16]} g6 {[%emt 0:03:41]} 23. f4 {[%emt 0:00:28]} Rh8 {[%emt 0:02:22]} 24. h5 {[%emt 0:11:10]} Ng7 {[%emt 0:00:28]} 25. hxg6 {[%emt 0:05:15]} hxg6 {[%emt 0:00:13]} 26. Rh1 {[%emt 0:00:07]} Rxh1 {[%emt 0:02:24]} 27. Rxh1 {[%emt 0:00:02]} Ne6 {[%emt 0:00:26]} 28. Rh8+ {[%emt 0:04:47]} Kc7 {[%emt 0:00:10]} 29. Be2 {[%emt 0:00:50]} b6 {[%emt 0:00:09]} 30. Bg4 {[%emt 0:01:08]} Nd8 {[%emt 0:01:10]} 31. b4 {[%emt 0:00:36]} b5 {[%emt 0:04:45]} 32. f5 {[%emt 0:00:54]} gxf5 {[%emt 0:00:26]} 33. Bxf5 {[%emt 0:00:03]} Ne6 {[%emt 0:00:08]} 34. Bxe6 {[%emt 0:00:18]} Rxe6 {[%emt 0:03:40]} 35. Rh7 {[%emt 0:00:07]} a5 {[%emt 0:04:28]} 36. Rxf7+ {[%emt 0:00:31]} Kb6 {[%emt 0:00:03]} 37. a3 {[%emt 0:00:11]} axb4 {[%emt 0:00:46]} 38. axb4 {[%emt 0:00:02]} Re8 {[%emt 0:00:19]} 39. g6 {[%emt 0:00:09]} c5 {[%emt 0:00:47]} 40. dxc5+ {[%emt 0:00:00]} Kc6 {[%emt 0:00:00]} 41. g7 {[%emt 0:15:26]} d4+ {[%emt 0:15:52]} 42. Kd3 {[%emt 0:00:35]} Kd5 {[%emt 0:00:33]} 43. Rf8 {[%emt 0:00:08]} 1-0

[Event "11th Arad Open 2018"]
[Site "Arad"]
[Date "2018.08.07"]
[Round "4"]
[White "Balla, Tamas-Kristof"]
[Black "Visanescu, Daria-Ioana"]
[Result "1-0"]
[ECO "D30"]
[WhiteElo "2352"]
[BlackElo "2075"]
[Annotator "NA"]
[PlyCount "109"]
[EventDate "2018.08.05"]
[EventType "swiss"]
[EventCountry "ROU"]
[SourceTitle "playchess.com"]
[Source "ChessBase"]
[SourceQuality "1"]
[TimeControl "40/5400+30:1800+30"]

1. d4 {[%emt 0:07:49]} d5 {[%emt 0:00:00]} 2. c4 {[%emt 0:00:06]} e6 {[%emt 0:00:00]} 3. Nf3 {[%emt 0:00:10]} a6 {[%emt 0:00:27]} 4. cxd5 {[%emt 0:08:11]} exd5 {[%emt 0:00:06]} 5. Nc3 {[%emt 0:00:04]} c6 {[%emt 0:00:24]} 6. Bf4 {[%emt 0:00:37]} Bd6 {[%emt 0:00:44]} 7. Bg3 {[%emt 0:00:21]} Ne7 {[%emt 0:00:20]} 8. e3 {[%emt 0:00:19]} O-O {[%emt 0:14:38]} 9. Qb3 {[%emt 0:01:19]} b5 {[%emt 0:14:54]} 10. Be2 {[%emt 0:05:09]} Bg4 {[%emt 0:01:46]} 11. Rc1 {[%emt 0:04:06]} Re8 {[%emt 0:03:32]} 12. Bxd6 {[%emt 0:11:57]} Qxd6 {[%emt 0:00:07]} 13. Ne5 {[%emt 0:00:03]} Bxe2 {[%emt 0:06:09]} 14. Nxe2 {[%emt 0:01:17]} Rc8 {[%emt 0:08:40]} 15. Nd3 {[%emt 0:04:23]} Nd7 {[%emt 0:00:15]} 16. O-O {[%emt 0:00:07]} Nb6 {[%emt 0:05:36]} 17. Nc5 {[%emt 0:03:44]} a5 {[%emt 0:03:52]} 18. Qd3 {[%emt 0:01:43]} a4 {[%emt 0:01:14]} 19. Ng3 {[%emt 0:01:17]} Qf6 {[%emt 0:16:01]} 20. Rc2 {[%emt 0:03:29]} Ra7 {[%emt 0:01:37]} 21. Rfc1 {[%emt 0:02:01]} g6 {[%emt 0:01:22]} 22. Qe2 {[%emt 0:01:51]} Kg7 {[%emt 0:08:34]} 23. Qg4 {[%emt 0:00:47]} Qd6 {[%emt 0:01:33]} 24. h4 {[%emt 0:07:45]} f5 {[%emt 0:00:56]} 25. Qf3 {[%emt 0:00:46]} Rf8 {[%emt 0:02:08]} 26. Ne2 {[%emt 0:00:44]} h6 {[%emt 0:01:16]} 27. Nf4 {[%emt 0:02:48]} Rf6 {[%emt 0:00:06]} 28. Ncd3 {[%emt 0:02:46]} Nd7 {[%emt 0:00:08]} 29. Qg3 {[%emt 0:03:05]} Kh7 {[%emt 0:00:28]} 30. Qf3 {[%emt 0:09:49]} Ra8 {[%emt 0:01:06]} 31. h5 {[%emt 0:02:20]} gxh5 {[%emt 0:01:43]} 32. Qxh5 {[%emt 0:04:59]} Rg8 {[%emt 0:00:11]} 33. Qh3 {[%emt 0:01:52]} Rg4 {[%emt 0:03:49]} 34. f3 {[%emt 0:00:31]} Rg5 {[%emt 0:00:27]} 35. Kf2 {[%emt 0:00:28]} b4 {[%emt 0:02:30]} 36. Rh1 {[%emt 0:03:03]} b3 {[%emt 0:00:44]} 37. axb3 {[%emt 0:00:30]} axb3 {[%emt 0:00:03]} 38. Rc3 {[%emt 0:00:07]} Qb8 {[%emt 0:00:19]} 39. Qh4 {[%emt 0:01:09]} Kg8 {[%emt 0:01:04]} 40. Nh5 {[%emt 0:00:00]} Rf7 {[%emt 0:00:00]} 41. Qf4 {[%emt 0:18:56]} Qe8 {[%emt 0:18:27]} 42. Rxb3 {[%emt 0:02:16]} Rh7 {[%emt 0:07:50]} 43. Qh2 {[%emt 0:03:30]} Qc8 {[%emt 0:02:51]} 44. Ne5 {[%emt 0:02:07]} Rxh5 {[%emt 0:02:09]} 45. Qxh5 {[%emt 0:00:33]} Nxe5 {[%emt 0:00:11]} 46. dxe5 {[%emt 0:00:11]} c5 {[%emt 0:00:03]} 47. Ra1 {[%emt 0:01:16]} d4 {[%emt 0:00:21]} 48. e4 {[%emt 0:01:02]} c4 {[%emt 0:01:23]} 49. Rba3 {[%emt 0:00:22]} Qc5 {[%emt 0:00:12]} 50. Ra8+ {[%emt 0:00:24]} Kg7 {[%emt 0:00:11]} 51. R1a5 {[%emt 0:01:13]} Qb4 {[%emt 0:00:22]} 52. exf5 {[%emt 0:00:07]} Qd2+ {[%emt 0:00:27]} 53. Kg3 {[%emt 0:00:53]} Nxf5+ {[%emt 0:00:29]} 54. Qxf5 {[%emt 0:00:17]} Qe1+ {[%emt 0:00:05]} 55. Kh2 {[%emt 0:00:13]} 1-0